fUST/lending_fUST_20250910
["ID","MTS","AMOUNT","RATE_DAILY","PERIOD"]
[384692509,1757511041231,-480.0,0.00015473,2]
[384692510,1757511041241,-482.80682231,0.00015473,2]
[384692511,1757511041259,-483.12777276,0.00015473,2]
[384692512,1757511041275,-480.0,0.00015473,2]
[384692513,1757511041288,-480.0,0.00015473,2]
[384692514,1757511041297,-480.0,0.00015473,2]
[384692515,1757511041307,-480.0,0.00015473,2]
[384692516,1757511041317,-480.0,0.00015473,2]
[384692517,1757511041326,-480.0,0.00015473,2]
[384692518,1757511041336,-480.0,0.00015473,2]
[384692519,1757511041346,-480.0,0.00015473,2]
[384692520,1757511041355,-480.0,0.00015473,2]
[384692521,1757511041364,-483.44132887,0.00015473,2]
[384692522,1757511041373,-480.0,0.00015473,2]
[384692523,1757511041383,-480.0,0.00015473,2]
[384692524,1757511041392,-480.0,0.00015473,2]
[384692525,1757511041401,-480.0,0.00015473,2]
[384692526,1757511041410,-480.0,0.00015473,2]
[384692527,1757511041420,-480.0,0.00015473,2]
[384692528,1757511041429,-480.0,0.00015473,2]
[384692529,1757511041439,-480.0,0.00015473,2]
[384692530,1757511041448,-395.66,0.00015473,2]
[384692531,1757511041457,-481.3753523,0.00015473,2]
[384692532,1757511041467,-480.0,0.00015473,2]
[384692533,1757511041476,-480.0,0.00015473,2]
[384692534,1757511041486,-480.0,0.00015473,2]
[384692535,1757511041498,-480.0,0.00015473,2]
[384692536,1757511041507,-480.0,0.00015473,2]
[384692537,1757511041517,-480.0,0.00015473,2]
[384692538,1757511041527,-480.0,0.00015473,2]
[384692539,1757511041537,-605.93,0.00015473,2]
[384692540,1757511041546,-59510.60876909,0.00015474,2]
[384692541,1757511041614,-14643.83026707,0.00015474,2]
[384692542,1757511041626,-22991.29223606,0.00015474,2]
[384692543,1757511041637,-10540.8051012,0.00015474,2]
[384692574,1757511046134,-402.09137977,0.00015462,2]
[384692575,1757511046146,-480.0,0.00015472,2]
[384692576,1757511046156,-208.65314018,0.00015472,2]
[384692577,1757511046167,-500.0,0.00015472,2]
[384692578,1757511046180,-500.0,0.00015472,2]
[384692579,1757511046190,-199.93502716,0.00015472,2]
[384692580,1757511046200,-480.0,0.00015472,2]
[384692581,1757511046211,-480.0,0.00015472,2]
[384692582,1757511046221,-19551.5112041,0.00015474,2]
[384692583,1757511048235,-555.21839812,0.00015474,2]
[384692590,1757511260385,-183.51227797,0.0001376,2]
[384692591,1757511260416,-183.51227797,0.00013899,2]
[384692592,1757511260450,-483.19701424,0.00013999,2]
[384692593,1757511260481,-480.0,0.00013999,2]
[384692594,1757511260512,-510.94,0.00013999,2]
[384692595,1757511260542,-480.0,0.00013999,2]
[384692596,1757511260577,-480.0,0.00013999,2]
[384692597,1757511260609,-597.09,0.00013999,2]
[384692598,1757511260642,-480.0,0.00013999,2]
[384692599,1757511260673,-196.67194668,0.00014273,2]
[384692600,1757511260704,-480.0,0.00014273,2]
[384692601,1757511260735,-410.16296628,0.00014273,2]
[384692602,1757511285409,-231.25304396,0.00013859,2]
[384692603,1757511285441,-480.0,0.00013999,2]
[384692604,1757511285477,-480.0,0.00013999,2]
[384692605,1757511285508,-480.0,0.00013999,2]
[384692606,1757511285540,-480.0,0.00013999,2]
[384692607,1757511285572,-480.0,0.00013999,2]
[384692608,1757511285601,-480.0,0.00013999,2]
[384692609,1757511285631,-480.0,0.00013999,2]
[384692610,1757511285662,-69.83703372,0.00014273,2]
[384692611,1757511285692,-480.0,0.00014273,2]
[384692612,1757511285724,-480.0,0.00014273,2]
[384692613,1757511285754,-274.92,0.00014273,2]
[384692614,1757511305442,-480.0,0.00013999,2]
[384692615,1757511305479,-480.0,0.00014273,2]
[384692616,1757511305513,-480.0,0.00014273,2]
[384692617,1757511305546,-480.0,0.00014273,2]
[384692618,1757511305577,-300.0,0.00014277,2]
[384692619,1757511305609,-300.0,0.00014277,2]
[384692620,1757511305644,-300.0,0.00014278,2]
[384692621,1757511305678,-300.0,0.00014278,2]
[384692622,1757511305712,-300.0,0.00014278,2]
[384692623,1757511305749,-300.0,0.00014278,2]
[384692624,1757511305784,-300.0,0.00014278,2]
[384692625,1757511305822,-300.0,0.00014278,2]
[384692626,1757511305860,-300.0,0.00014278,2]
[384692627,1757511305895,-300.0,0.00014278,2]
[384692628,1757511340291,610.0,0.00027397,120]
[384692629,1757511399657,200.0,0.00016295,10]
[384692630,1757511400054,200.0,0.00016295,10]
[384692631,1757511400451,200.0,0.00016295,10]
[384692632,1757511400882,200.0,0.00016295,10]
[384692633,1757511401288,200.0,0.00016295,10]
[384692634,1757511401607,200.0,0.00016295,10]
[384692635,1757511402024,200.0,0.00016295,10]
[384692636,1757511402426,200.0,0.00016295,10]
[384692637,1757511403837,200.0,0.00016295,10]
[384692638,1757511404461,200.0,0.00016295,10]
[384692639,1757511406087,200.0,0.00016295,10]
[384692640,1757511406483,204.793562,0.00016295,10]
[384692641,1757511438681,-567.03,0.00013999,2]
[384692642,1757511438713,-480.0,0.00013999,2]
[384692643,1757511438747,-480.0,0.00013999,2]
[384692644,1757511438780,-480.0,0.00013999,2]
[384692645,1757511438813,-480.0,0.00013999,2]
[384692646,1757511438847,-480.0,0.00013999,2]
[384692647,1757511438881,-480.0,0.00013999,2]
[384692648,1757511438914,-480.0,0.00013999,2]
[384692649,1757511438948,-480.0,0.00013999,2]
[384692650,1757511438983,-480.0,0.00013999,2]
[384692651,1757511442502,-480.0,0.00013999,2]
[384692652,1757511442532,-480.0,0.00013999,2]
[384692653,1757511442561,-480.0,0.00013999,2]
[384692654,1757511442592,-480.0,0.00013999,2]
[384692655,1757511442622,-480.0,0.00013999,2]
[384692656,1757511442651,-504.393767,0.0001402,2]
[384692657,1757511442681,-483.32,0.00014273,2]
[384692658,1757511442712,-480.0,0.00014273,2]
[384692659,1757511442742,-480.0,0.00014273,2]
[384692660,1757511442773,-480.0,0.00014273,2]
[384692661,1757511442937,-480.0,0.00014273,2]
[384692662,1757511442968,-502.26,0.00014273,2]
[384692663,1757511443000,-480.0,0.00014273,2]
[384692664,1757511443032,-300.0,0.00014278,2]
[384692665,1757511443064,-300.0,0.00014278,2]
[384692666,1757511443096,-300.0,0.00014278,2]
[384692667,1757511443128,-300.0,0.00014278,2]
[384692668,1757511443161,-300.0,0.00014278,2]
[384692669,1757511443192,-300.0,0.00014278,2]
[384692670,1757511443227,-300.0,0.00014278,2]
[384692671,1757511443257,-480.0,0.00014547,2]
[384692672,1757511443287,-480.0,0.00014547,2]
[384692673,1757511443318,-475.49,0.00014547,2]
[384692674,1757511449186,-4.51,0.00014547,2]
[384692675,1757511449221,-480.0,0.00014547,2]
[384692676,1757511449253,-480.0,0.00014547,2]
[384692677,1757511449284,-480.0,0.00014547,2]
[384692678,1757511449315,-480.0,0.00014547,2]
[384692679,1757511449349,-480.0,0.00014547,2]
[384692680,1757511449379,-226.86,0.00014547,2]
[384692681,1757511449410,-385.13,0.00014547,2]
[384692682,1757511449442,-600.0,0.00014563,2]
[384692683,1757511449472,-480.0,0.00014821,2]
[384692684,1757511449505,-480.0,0.00014821,2]
[384692685,1757511449538,-367.01,0.00014821,2]
[384692686,1757511449652,-112.99,0.00014821,2]
[384692687,1757511449682,-480.0,0.00014821,2]
[384692688,1757511449712,-480.0,0.00014821,2]
[384692689,1757511449743,-398.61,0.00014821,2]
[384692690,1757511449773,-189.14,0.00014821,2]
[384692691,1757511449808,-538.04,0.00014821,2]
[384692692,1757511449842,-459.34,0.00015095,2]
[384692693,1757511449873,-480.0,0.00015095,2]
[384692694,1757511449907,-480.0,0.00015095,2]
[384692695,1757511449940,-480.0,0.00015095,2]
[384692696,1757511449974,-480.0,0.00015095,2]
[384692697,1757511450006,-321.67310384,0.00015273,2]
[384692698,1757511455204,-542.26,0.00013999,2]
[384692699,1757511455236,-638.25575671,0.00015273,2]
[384692700,1757511455266,-1898.93558421,0.00015273,2]
[384692701,1757511455324,-3841.10731816,0.00015273,2]
[384692702,1757511455359,-494.88,0.00015369,2]
[384692703,1757511455392,-480.0,0.00015369,2]
[384692704,1757511455424,-480.0,0.00015369,2]
[384692705,1757511455456,-480.0,0.00015369,2]
[384692706,1757511455487,-171.50510231,0.00015372,2]
[384692707,1757511455518,-500.0,0.00015372,2]
[384692708,1757511455551,-500.0,0.00015372,2]
[384692709,1757511455581,-500.0,0.00015372,2]
[384692710,1757511455615,-500.0,0.00015372,2]
[384692711,1757511455646,-495.91181113,0.00015372,2]
[384692712,1757511455676,-295.41617312,0.00015372,2]
[384692713,1757511455862,-204.58382688,0.00015372,2]
[384692714,1757511458212,-500.0,0.00015372,2]
[384692715,1757511458248,-604.42893904,0.00015372,2]
[384692716,1757511458390,-500.0,0.00015372,2]
[384692717,1757511458424,-295.08625171,0.00015372,2]
[384692718,1757511458459,-500.0,0.00015372,2]
[384692719,1757511458494,-500.0,0.00015372,2]
[384692720,1757511458528,-174.95366731,0.00015372,2]
[384692721,1757511458562,-521.6458918,0.00015372,2]
[384692722,1757511458595,-500.0,0.00015372,2]
[384692723,1757511458627,-480.0,0.00015372,2]
[384692724,1757511458660,-310.39050028,0.00015372,2]
[384692725,1757511458752,-226.99949972,0.00015372,2]
[384692726,1757511458783,-201.16,0.00015372,2]
[384692727,1757511458814,-239.66959042,0.00015372,2]
[384692728,1757511458844,-500.0,0.00015373,2]
[384692729,1757511458878,-500.0,0.00015373,2]
[384692730,1757511459125,-239.66959042,0.00015373,2]
[384692731,1757511459145,-6664.35181972,0.00015373,2]
[384692732,1757511462983,-10000.01,0.00015373,2]
[384692733,1757511463137,-10000.01,0.00015373,2]
[384692734,1757511465491,-10000.01,0.00015373,2]
[384692735,1757511465683,-10000.01,0.00015373,2]
[384692736,1757511472539,-425.35819495,0.00015371,2]
[384692737,1757511472582,-9149.2936101,0.00015373,2]
[384692738,1757511472672,-10000.01,0.00015373,2]
[384692739,1757511479613,-480.0,0.00013999,2]
[384692740,1757511479650,-500.0,0.00013999,2]
[384692741,1757511479684,-191.63,0.00014273,2]
[384692742,1757511479720,-500.0,0.00014278,2]
[384692743,1757511479828,-6656.75,0.00015373,2]
[384692744,1757511479869,-10000.01,0.00015373,2]
[384692745,1757511516379,864.0,0.00018971,20]
[384692749,1757511657560,-359.184814,0.00013699,2]
[384692750,1757511657591,-300.0,0.00013998,2]
[384692751,1757511657620,-300.0,0.00013998,2]
[384692752,1757511657650,-300.0,0.00013998,2]
[384692753,1757511657680,-1200.0,0.00013998,2]
[384692754,1757511657709,-500.0,0.00013999,2]
[384692755,1757511657739,-480.0,0.00013999,2]
[384692756,1757511657769,-480.0,0.00013999,2]
[384692757,1757511657801,-611.22,0.00013999,2]
[384692758,1757511657838,-459.200372,0.00013999,2]
[384692759,1757511657963,-20.799628,0.00013999,2]
[384692760,1757511657995,-480.0,0.00013999,2]
[384692761,1757511658027,-480.0,0.00013999,2]
[384692762,1757511658058,-480.0,0.00013999,2]
[384692763,1757511658090,-480.0,0.00013999,2]
[384692764,1757511658120,-480.0,0.00013999,2]
[384692765,1757511658151,-480.0,0.00013999,2]
[384692766,1757511658181,-623.59789019,0.00013999,2]
[384692767,1757511658210,-480.0,0.00013999,2]
[384692768,1757511658241,-342.57150064,0.00013999,2]
[384692769,1757511658271,-480.0,0.00013999,2]
[384692770,1757511658591,-20.799628,0.00013999,2]
[384692771,1757511658610,-346.07196234,0.00013999,2]
[384692772,1757511693671,-113.12840966,0.00013999,2]
[384692773,1757511693704,-480.0,0.00014273,2]
[384692774,1757511693736,-509.6,0.00014273,2]
[384692775,1757511693769,-288.79,0.00014273,2]
[384692776,1757511693801,-480.0,0.00014273,2]
[384692777,1757511693835,-347.19,0.00014273,2]
[384692778,1757511693869,-480.0,0.00014273,2]
[384692779,1757511693901,-500.0,0.00014278,2]
[384692780,1757511693935,-300.0,0.00014278,2]
[384692781,1757511693969,-300.0,0.00014278,2]
[384692782,1757511694003,-300.0,0.00014278,2]
[384692783,1757511694037,-300.0,0.00014278,2]
[384692784,1757511694072,-300.0,0.00014278,2]
[384692785,1757511694111,-300.0,0.00014278,2]
[384692786,1757511694221,-300.0,0.00014278,2]
[384692787,1757511694254,-300.0,0.00014278,2]
[384692788,1757511694291,-300.0,0.00014278,2]
[384692789,1757511694325,-300.0,0.00014278,2]
[384692790,1757511694360,-300.0,0.00014278,2]
[384692791,1757511694392,-300.0,0.00014278,2]
[384692792,1757511694426,-300.0,0.00014278,2]
[384692793,1757511694459,-300.0,0.00014278,2]
[384692794,1757511694492,-300.0,0.00014278,2]
[384692795,1757511694523,-194.34091983,0.00014547,2]
[384692796,1757511694553,-480.0,0.00014547,2]
[384692797,1757511694587,-480.0,0.00014547,2]
[384692798,1757511694619,-600.0,0.00014563,2]
[384692799,1757511694649,-480.0,0.00014821,2]
[384692800,1757511695130,-2.59318068,0.00014821,2]
[384692801,1757511695150,-131.32816034,0.00014821,2]
[384692802,1757511723702,-480.0,0.00013999,2]
[384692803,1757511723737,-346.07865898,0.00014673,2]
[384692804,1757511723772,-346.07865898,0.00014821,2]
[384692805,1757511723805,-480.0,0.00015095,2]
[384692806,1757511723840,-480.0,0.00015095,2]
[384692807,1757511723874,-1909.00009584,0.00015273,2]
[384692808,1757511723976,-1917.6951724,0.00015273,2]
[384692809,1757511724008,-506.54285697,0.00015273,2]
[384692810,1757511724041,-170.32,0.00015363,3]
[384692811,1757511724074,-510.96,0.00015363,3]
[384692812,1757511724107,-198.15,0.00015369,2]
[384692813,1757511724142,-480.0,0.00015369,2]
[384692814,1757511724252,-51.72231543,0.00015371,2]
[384692815,1757511724268,-506.54285697,0.00015371,2]
[384692816,1757511724284,-170.32,0.00015371,2]
[384692817,1757511724317,-510.96,0.00015371,2]
[384692818,1757511724342,-198.15,0.00015371,2]
[384692819,1757511724364,-480.0,0.00015371,2]
[384692820,1757511724388,-2432.67394126,0.00015371,2]
[384692821,1757511734791,864.0,0.00018971,20]
[384692831,1757512102832,-1137.96,0.00013859,2]
[384692832,1757512102862,-308.752005,0.00015068,2]
[384692833,1757512102893,-1200.0,0.00015094,2]
[384692834,1757512102924,-2155.45581116,0.00015273,2]
[384692835,1757512102973,-395.67436768,0.00015273,2]
[384692836,1757512103003,-697.33041627,0.00015273,2]
[384692837,1757512103035,-180.0,0.00015362,2]
[384692838,1757512103066,-358.33127415,0.00015362,2]
[384692839,1757512103096,-704.54,0.00015363,3]
[384692840,1757512103126,-480.0,0.0001537,2]
[384692841,1757512103157,-480.0,0.0001537,2]
[384692842,1757512103192,-480.0,0.0001537,2]
[384692843,1757512103222,-480.0,0.0001537,2]
[384692844,1757512103252,-332.56209887,0.0001537,2]
[384692845,1757512103282,-343.13368606,0.0001537,2]
[384692846,1757512103576,-52.54068162,0.0001537,2]
[384692847,1757512103598,-84.32563232,0.0001537,2]
[384692848,1757512103609,-395.67436768,0.0001537,2]
[384692849,1757512107864,-3153.65069087,0.00015216,2]
[384692850,1757512107890,-3692.70861826,0.00015216,2]
[384692851,1757512107931,-84.32563232,0.0001537,2]
[384692852,1757512107967,-480.0,0.0001537,2]
[384692853,1757512108004,-480.0,0.0001537,2]
[384692854,1757512108040,-482.46945408,0.0001537,2]
[384692855,1757512108074,-480.0,0.0001537,2]
[384692856,1757512108105,-480.0,0.0001537,2]
[384692857,1757512108138,-480.0,0.0001537,2]
[384692858,1757512108172,-484.80567327,0.0001537,2]
[384692859,1757512108205,-482.03090318,0.0001537,2]
[384692860,1757512108237,-480.0,0.0001537,2]
[384692861,1757512108270,-480.0,0.0001537,2]
[384692862,1757512108486,-212.7466743,0.0001537,2]
[384692863,1757512114655,-267.2533257,0.0001537,2]
[384692864,1757512114686,-482.15021736,0.0001537,2]
[384692865,1757512114716,-480.0,0.0001537,2]
[384692866,1757512114747,-482.85908735,0.0001537,2]
[384692867,1757512114777,-480.0,0.0001537,2]
[384692868,1757512114806,-481.54633036,0.0001537,2]
[384692869,1757512114835,-483.70745102,0.0001537,2]
[384692870,1757512114864,-482.42793387,0.0001537,2]
[384692871,1757512114894,-484.95816306,0.0001537,2]
[384692872,1757512114923,-480.0,0.0001537,2]
[384692873,1757512114955,-307.42115653,0.0001537,2]
[384692874,1757512115074,-175.3626695,0.0001537,2]
[384692875,1757512115106,-483.35534612,0.0001537,2]
[384692876,1757512115138,-481.40132224,0.0001537,2]
[384692877,1757512115171,-480.0,0.0001537,2]
[384692878,1757512115214,-480.0,0.0001537,2]
[384692879,1757512115249,-288.77699689,0.0001537,2]
[384692880,1757512115285,-480.0,0.0001537,2]
[384692881,1757512115320,-480.0,0.0001537,2]
[384692882,1757512115353,-480.0,0.0001537,2]
[384692883,1757512115386,-480.0,0.0001537,2]
[384692884,1757512115420,-480.0,0.0001537,2]
[384692885,1757512115907,-175.3626695,0.0001537,2]
[384692886,1757512115923,-304.6373305,0.0001537,2]
[384692887,1757512115937,-117.58,0.0001537,2]
[384692888,1757512120670,-362.42,0.0001537,2]
[384692889,1757512120704,-415.95900355,0.0001537,2]
[384692890,1757512120734,-480.0,0.0001537,2]
[384692891,1757512120765,-480.0,0.0001537,2]
[384692892,1757512120795,-480.0,0.0001537,2]
[384692893,1757512120824,-480.0,0.0001537,2]
[384692894,1757512120854,-482.73065946,0.0001537,2]
[384692895,1757512120887,-480.0,0.0001537,2]
[384692896,1757512120924,-334.70512636,0.0001537,2]
[384692897,1757512120959,-480.0,0.0001537,2]
[384692898,1757512120990,-480.0,0.0001537,2]
[384692899,1757512121095,-480.0,0.0001537,2]
[384692900,1757512121127,-480.0,0.0001537,2]
[384692901,1757512121157,-480.0,0.0001537,2]
[384692902,1757512121189,-480.0,0.0001537,2]
[384692903,1757512121219,-480.0,0.0001537,2]
[384692904,1757512121248,-369.33630945,0.0001537,2]
[384692905,1757512121277,-480.0,0.0001537,2]
[384692906,1757512121307,-480.98562542,0.0001537,2]
[384692907,1757512121339,-480.0,0.0001537,2]
[384692908,1757512121370,-480.0,0.0001537,2]
[384692909,1757512121400,-139.36613026,0.0001537,2]
[384692910,1757512121765,-340.63386974,0.0001537,2]
[384692911,1757512121776,-88.38042126,0.0001537,2]
[384692912,1757512128713,-500.0,0.0001537,2]
[384692913,1757512128745,-500.0,0.0001537,2]
[384692914,1757512128779,-500.0,0.0001537,2]
[384692915,1757512128813,-500.0,0.0001537,2]
[384692916,1757512128844,-250.03053668,0.0001537,2]
[384692917,1757512128877,-500.0,0.0001537,2]
[384692918,1757512128911,-500.0,0.0001537,2]
[384692919,1757512128945,-500.0,0.0001537,2]
[384692920,1757512128979,-500.0,0.0001537,2]
[384692921,1757512129012,-500.0,0.0001537,2]
[384692922,1757512129122,-500.0,0.0001537,2]
[384692923,1757512129155,-500.0,0.0001537,2]
[384692924,1757512129191,-438.41153421,0.0001537,2]
[384692925,1757512129225,-438.06756567,0.0001537,2]
[384692926,1757512129260,-500.0,0.0001537,2]
[384692927,1757512129293,-500.0,0.0001537,2]
[384692928,1757512129325,-500.0,0.0001537,2]
[384692929,1757512129354,-500.0,0.0001537,2]
[384692930,1757512129386,-477.00008235,0.0001537,2]
[384692931,1757512129418,-500.0,0.0001537,2]
[384692932,1757512129734,-500.0,0.0001537,2]
[384692933,1757512129750,-293.05163554,0.0001537,2]
[384692934,1757512134986,-206.94836446,0.0001537,2]
[384692935,1757512135020,-500.0,0.0001537,2]
[384692936,1757512135052,-500.0,0.0001537,2]
[384692937,1757512135082,-421.26023325,0.0001537,2]
[384692938,1757512135111,-500.0,0.0001537,2]
[384692939,1757512135142,-500.0,0.0001537,2]
[384692940,1757512135175,-500.0,0.0001537,2]
[384692941,1757512135208,-500.0,0.0001537,2]
[384692942,1757512135238,-500.0,0.0001537,2]
[384692943,1757512135266,-443.85087166,0.0001537,2]
[384692944,1757512135295,-355.89106126,0.0001537,2]
[384692945,1757512135410,-144.10893874,0.0001537,2]
[384692946,1757512135441,-500.0,0.0001537,2]
[384692947,1757512135471,-171.12394629,0.0001537,2]
[384692948,1757512135503,-500.0,0.0001537,2]
[384692949,1757512135534,-500.0,0.0001537,2]
[384692950,1757512135565,-500.0,0.0001537,2]
[384692951,1757512135594,-500.0,0.0001537,2]
[384692952,1757512135626,-500.0,0.0001537,2]
[384692953,1757512135656,-500.0,0.0001537,2]
[384692954,1757512135689,-500.0,0.0001537,2]
[384692955,1757512135723,-500.0,0.0001537,2]
[384692956,1757512136027,-171.12394629,0.0001537,2]
[384692957,1757512136043,-328.87605371,0.0001537,2]
[384692958,1757512136053,-40.66817623,0.0001537,2]
[384692959,1757512138687,-459.33182377,0.0001537,2]
[384692960,1757512138833,-500.0,0.0001537,2]
[384692961,1757512138864,-467.72261239,0.0001537,2]
[384692962,1757512138895,-500.0,0.0001537,2]
[384692963,1757512138929,-500.0,0.0001537,2]
[384692964,1757512138961,-500.0,0.0001537,2]
[384692965,1757512138995,-500.0,0.0001537,2]
[384692966,1757512139024,-235.43811983,0.0001537,2]
[384692967,1757512139056,-500.0,0.0001537,2]
[384692968,1757512139088,-500.0,0.0001537,2]
[384692969,1757512139118,-175.02488802,0.0001537,2]
[384692970,1757512139175,-4974.51397404,0.00015216,2]
[384692971,1757512139465,-50.98205192,0.00015216,2]
[384692972,1757512139475,-324.97511198,0.0001537,2]
[384692974,1757512143902,-500.0,0.0001537,2]
[384692975,1757512143947,-500.0,0.0001537,2]
[384692976,1757512143983,-500.0,0.0001537,2]
[384692977,1757512144020,-500.0,0.0001537,2]
[384692978,1757512144056,-500.0,0.0001537,2]
[384692979,1757512144090,-500.0,0.0001537,2]
[384692980,1757512144126,-500.0,0.0001537,2]
[384692981,1757512144161,-500.0,0.0001537,2]
[384692982,1757512144199,-500.0,0.0001537,2]
[384692983,1757512144233,-500.0,0.0001537,2]
[384692984,1757512144361,-500.0,0.0001537,2]
[384692985,1757512144396,-153.08461778,0.0001537,2]
[384692986,1757512144431,-256.47650388,0.0001537,2]
[384692987,1757512144469,-500.0,0.0001537,2]
[384692988,1757512144503,-500.0,0.0001537,2]
[384692989,1757512144539,-500.0,0.0001537,2]
[384692990,1757512144575,-500.0,0.0001537,2]
[384692991,1757512144609,-500.0,0.0001537,2]
[384692992,1757512144643,-500.0,0.0001537,2]
[384692993,1757512144678,-500.0,0.0001537,2]
[384692994,1757512144715,-500.0,0.0001537,2]
[384692995,1757512145133,-0.01,0.0001537,2]
[384692996,1757512145151,-180.88775668,0.0001537,2]
[384692997,1757512147707,-300.0,0.00015216,2]
[384692998,1757512147742,-319.10224332,0.0001537,2]
[384692999,1757512147776,-468.29700928,0.0001537,2]
[384693000,1757512147867,-7825.2114948,0.0001537,2]
[384693001,1757512147898,-10000.01,0.0001537,2]
[384693002,1757512159058,-607.28974697,0.00015272,2]
[384693003,1757512159091,-1950.89888718,0.0001537,2]
[384693004,1757512159124,-480.0,0.00015371,2]
[384693005,1757512159157,-480.0,0.00015371,2]
[384693006,1757512159190,-480.0,0.00015371,2]
[384693007,1757512159224,-480.0,0.00015371,2]
[384693008,1757512159257,-487.5927317,0.00015371,2]
[384693009,1757512159372,-68.4472683,0.00015371,2]
[384693010,1757512159403,-480.0,0.00015371,2]
[384693011,1757512159435,-480.0,0.00015371,2]
[384693012,1757512159465,-480.0,0.00015371,2]
[384693013,1757512159496,-500.0,0.00015371,2]
[384693014,1757512159527,-480.0,0.00015371,2]
[384693015,1757512159558,-480.0,0.00015371,2]
[384693016,1757512159591,-480.0,0.00015371,2]
[384693017,1757512159629,-480.0,0.00015371,2]
[384693018,1757512159667,-480.0,0.00015371,2]
[384693019,1757512159701,-480.0,0.00015371,2]
[384693020,1757512160024,-88.4472683,0.00015371,2]
[384693021,1757512160047,-223.1154634,0.00015371,2]
[384693023,1757512162735,-168.4372683,0.00015371,2]
[384693024,1757512162774,-480.0,0.00015371,2]
[384693025,1757512162819,-288.13,0.00015371,2]
[384693026,1757512162855,-483.10462769,0.00015371,2]
[384693027,1757512162887,-480.0,0.00015371,2]
[384693028,1757512162927,-531.25,0.00015371,2]
[384693029,1757512162964,-480.0,0.00015371,2]
[384693030,1757512162998,-480.0,0.00015371,2]
[384693031,1757512163032,-480.0,0.00015371,2]
[384693032,1757512163063,-480.0,0.00015371,2]
[384693033,1757512163097,-480.0,0.00015371,2]
[384693034,1757512163215,-480.0,0.00015371,2]
[384693035,1757512163251,-480.0,0.00015371,2]
[384693036,1757512163286,-480.0,0.00015371,2]
[384693037,1757512163321,-480.0,0.00015371,2]
[384693038,1757512163357,-480.0,0.00015371,2]
[384693039,1757512163394,-500.69,0.00015371,2]
[384693040,1757512163431,-480.0,0.00015371,2]
[384693041,1757512163469,-480.0,0.00015371,2]
[384693042,1757512163505,-480.0,0.00015371,2]
[384693043,1757512163541,-480.0,0.00015371,2]
[384693044,1757512164052,-358.85620802,0.00015371,2]
[384693045,1757512164069,-141.14379198,0.00015371,2]
[384693046,1757512164079,-217.48620802,0.00015371,2]
[384693047,1757512168133,-510.48,0.00015363,3]
[384693048,1757512168167,-282.51379198,0.00015371,2]
[384693049,1757512168203,-480.0,0.00015371,2]
[384693050,1757512168239,-480.0,0.00015371,2]
[384693051,1757512168272,-480.0,0.00015371,2]
[384693052,1757512168304,-480.0,0.00015371,2]
[384693053,1757512168336,-480.0,0.00015371,2]
[384693054,1757512168369,-369.98,0.00015371,2]
[384693055,1757512168402,-164.22,0.00015371,2]
[384693056,1757512168434,-480.0,0.00015371,2]
[384693057,1757512168466,-499.73,0.00015371,2]
[384693058,1757512168498,-106.16241604,0.00015371,2]